[Event "Titled Tuesday Blitz April 12 Early 2022"]
[White "Narayanan, Srinath"]
[Black "Tan, Jun Ying"]
[WhiteFideId "5018420"]
[BlackFideId "5710413"]
[WhiteElo "2472"]
[BlackElo "1827"]
[Result "1-0"]
[Round "10"]
[TimeControl "180+1"]
[Date "2022.04.12"]
[WhiteClock "0:00:09"]
[BlackClock "0:00:08"]

1. Nf3 {[%clk 0:03:00]}  c5 {[%clk 0:02:59]} 2. c4 {[%clk 0:02:59]}  Nf6 {[%clk 0:02:59]} 3. Nc3 {[%clk 0:02:58]}  e6 {[%clk 0:02:58]} 4. g3 {[%clk 0:02:57]}  b6 {[%clk 0:02:58]} 5. Bg2 {[%clk 0:02:58]}  Bb7 {[%clk 0:02:59]} 6. O-O {[%clk 0:02:58]}  Be7 {[%clk 0:02:59]} 7. d4 {[%clk 0:02:59]}  cxd4 {[%clk 0:02:59]} 8. Qxd4 {[%clk 0:02:59]}  d6 {[%clk 0:02:56]} 9. Rd1 {[%clk 0:02:59]}  O-O {[%clk 0:02:42]} 10. b3 {[%clk 0:02:59]}  a6 {[%clk 0:02:34]} 11. Ba3 {[%clk 0:02:54]}  Ne8 {[%clk 0:02:35]} 12. Rac1 {[%clk 0:02:44]}  Nd7 {[%clk 0:02:31]} 13. Ne4 {[%clk 0:02:32]}  Nc5 {[%clk 0:02:18]} 14. Ned2 {[%clk 0:02:14]}  Qc7 {[%clk 0:02:09]} 15. e4 {[%clk 0:02:12]}  Nf6 {[%clk 0:02:00]} 16. Re1 {[%clk 0:02:08]}  Rad8 {[%clk 0:01:56]} 17. Bb2 {[%clk 0:02:08]}  Rfe8 {[%clk 0:01:53]} 18. h3 {[%clk 0:02:05]}  Bf8 {[%clk 0:01:51]} 19. Nh2 {[%clk 0:01:45]}  Qb8 {[%clk 0:01:48]} 20. Ng4 {[%clk 0:01:35]}  Nxg4 {[%clk 0:01:44]} 21. hxg4 {[%clk 0:01:36]}  b5 {[%clk 0:01:41]} 22. Qe3 {[%clk 0:01:30]}  bxc4 {[%clk 0:01:35]} 23. Rxc4 {[%clk 0:01:27]}  Nd7 {[%clk 0:01:18]} 24. Rec1 {[%clk 0:01:24]}  Rc8 {[%clk 0:01:14]} 25. Qd3 {[%clk 0:01:17]}  Ne5 {[%clk 0:01:06]} 26. Rxc8 {[%clk 0:01:15]}  Nxd3 {[%clk 0:00:59]} 27. Rxb8 {[%clk 0:01:15]}  Rxb8 {[%clk 0:01:00]} 28. Rc2 {[%clk 0:01:15]}  Nxb2 {[%clk 0:00:54]} 29. Rxb2 {[%clk 0:01:16]}  Rc8 {[%clk 0:00:54]} 30. Nc4 {[%clk 0:01:16]}  Bxe4 {[%clk 0:00:41]} 31. Bxe4 {[%clk 0:01:09]}  d5 {[%clk 0:00:41]} 32. Bd3 {[%clk 0:00:49]}  dxc4 {[%clk 0:00:41]} 33. Bxc4 {[%clk 0:00:50]}  a5 {[%clk 0:00:38]} 34. Rd2 {[%clk 0:00:50]}  Bb4 {[%clk 0:00:30]} 35. Rd7 {[%clk 0:00:50]}  Kf8 {[%clk 0:00:31]} 36. f4 {[%clk 0:00:49]}  Ke8 {[%clk 0:00:26]} 37. Rb7 {[%clk 0:00:49]}  Rd8 {[%clk 0:00:22]} 38. f5 {[%clk 0:00:48]}  exf5 {[%clk 0:00:15]} 39. Bxf7+ {[%clk 0:00:36]}  Kf8 {[%clk 0:00:15]} 40. gxf5 {[%clk 0:00:37]}  Rd1+ {[%clk 0:00:16]} 41. Kg2 {[%clk 0:00:36]}  Rd2+ {[%clk 0:00:16]} 42. Kf3 {[%clk 0:00:37]}  Rxa2 {[%clk 0:00:17]} 43. Be6 {[%clk 0:00:32]}  Rd2 {[%clk 0:00:13]} 44. Rf7+ {[%clk 0:00:30]}  Ke8 {[%clk 0:00:10]} 45. Rxg7 {[%clk 0:00:30]}  h5 {[%clk 0:00:09]} 46. Rh7 {[%clk 0:00:28]}  Bc5 {[%clk 0:00:04]} 47. Rxh5 {[%clk 0:00:25]}  Ke7 {[%clk 0:00:05]} 48. Ke4 {[%clk 0:00:12]}  Rd4+ {[%clk 0:00:04]} 49. Ke5 {[%clk 0:00:07]}  Rg4 {[%clk 0:00:05]} 50. f6+ {[%clk 0:00:06]}  Ke8 {[%clk 0:00:05]} 51. Bxg4 {[%clk 0:00:06]}  Bb4 {[%clk 0:00:05]} 52. Ke6 {[%clk 0:00:06]}  Bf8 {[%clk 0:00:05]} 53. Rh8 {[%clk 0:00:06]}  a4 {[%clk 0:00:05]} 54. f7+ {[%clk 0:00:07]}  Kd8 {[%clk 0:00:05]} 55. Rxf8+ {[%clk 0:00:07]}  Kc7 {[%clk 0:00:06]} 56. bxa4 {[%clk 0:00:08]}  Kb6 {[%clk 0:00:07]} 57. Re8 {[%clk 0:00:08]}  Ka5 {[%clk 0:00:08]} 58. f8=Q {[%clk 0:00:09]}  Kxa4 {[%clk 0:00:08]} 59. Rb8 {[%clk 0:00:08]}  Ka5 {[%clk 0:00:08]} 60. Qa3# {[%clk 0:00:09]} 1-0


[Site "https://www.chess.com"]

[Event "Titled Tuesday Blitz April 12 Early 2022"]
[White "Onslow, Alfie"]
[Black "Gharibyan, Mamikon"]
[WhiteFideId "436976"]
[BlackFideId "13308300"]
[WhiteElo "1884"]
[BlackElo "2254"]
[Result "0-1"]
[Round "10"]
[TimeControl "180+1"]
[Date "2022.04.13"]
[WhiteClock "0:01:00"]
[BlackClock "0:01:39"]

1. Nf3 {[%clk 0:02:59]}  g6 {[%clk 0:02:57]} 2. c4 {[%clk 0:02:58]}  Bg7 {[%clk 0:02:57]} 3. g3 {[%clk 0:02:56]}  e5 {[%clk 0:02:51]} 4. d3 {[%clk 0:02:50]}  Nc6 {[%clk 0:02:51]} 5. Bg2 {[%clk 0:02:50]}  Nge7 {[%clk 0:02:49]} 6. Nc3 {[%clk 0:02:49]}  O-O {[%clk 0:02:49]} 7. O-O {[%clk 0:02:44]}  d6 {[%clk 0:02:49]} 8. Rb1 {[%clk 0:02:39]}  a5 {[%clk 0:02:48]} 9. Ne1 {[%clk 0:02:36]}  f5 {[%clk 0:02:45]} 10. Nc2 {[%clk 0:02:36]}  f4 {[%clk 0:02:44]} 11. b4 {[%clk 0:02:32]}  axb4 {[%clk 0:02:42]} 12. Nxb4 {[%clk 0:02:33]}  Nd4 {[%clk 0:02:40]} 13. Ncd5 {[%clk 0:02:24]}  Nxd5 {[%clk 0:02:33]} 14. Bxd5+ {[%clk 0:02:12]}  Kh8 {[%clk 0:02:30]} 15. e3 {[%clk 0:02:11]}  Ne6 {[%clk 0:02:22]} 16. Bxe6 {[%clk 0:02:06]}  Bxe6 {[%clk 0:02:21]} 17. exf4 {[%clk 0:02:07]}  exf4 {[%clk 0:02:05]} 18. Bxf4 {[%clk 0:02:03]}  Qd7 {[%clk 0:02:03]} 19. Nd5 {[%clk 0:01:57]}  b6 {[%clk 0:01:57]} 20. Re1 {[%clk 0:01:56]}  Rxa2 {[%clk 0:01:56]} 21. Nxc7 {[%clk 0:01:44]}  Bg4 {[%clk 0:01:53]} 22. f3 {[%clk 0:01:43]}  Bh3 {[%clk 0:01:52]} 23. Nd5 {[%clk 0:01:37]}  Bg2 {[%clk 0:01:44]} 24. Re7 {[%clk 0:01:25]}  Qxe7 {[%clk 0:01:41]} 25. Nxe7 {[%clk 0:01:00]}  Bd4+ {[%clk 0:01:39]} 0-1


[Site "https://www.chess.com"]

[Event "Titled Tuesday Blitz April 12 Early 2022"]
[White "Pajeken, Jakob Leon"]
[Black "Jakubowska, Anna"]
[WhiteFideId "12942839"]
[BlackFideId "1121952"]
[WhiteElo "2351"]
[BlackElo "1924"]
[Result "1-0"]
[Round "10"]
[TimeControl "180+1"]
[Date "2022.04.13"]
[WhiteClock "0:01:14"]
[BlackClock "0:00:32"]

1. d4 {[%clk 0:03:00]}  d5 {[%clk 0:02:57]} 2. Nf3 {[%clk 0:03:00]}  Nf6 {[%clk 0:02:56]} 3. c4 {[%clk 0:03:00]}  c6 {[%clk 0:02:56]} 4. e3 {[%clk 0:02:59]}  e6 {[%clk 0:02:56]} 5. Nbd2 {[%clk 0:02:58]}  Bd6 {[%clk 0:02:55]} 6. b3 {[%clk 0:02:57]}  O-O {[%clk 0:02:55]} 7. Bb2 {[%clk 0:02:57]}  Nbd7 {[%clk 0:02:55]} 8. Bd3 {[%clk 0:02:58]}  Qe7 {[%clk 0:02:55]} 9. Ne5 {[%clk 0:02:58]}  c5 {[%clk 0:02:46]} 10. O-O {[%clk 0:02:56]}  b6 {[%clk 0:02:41]} 11. f4 {[%clk 0:02:48]}  Bb7 {[%clk 0:02:40]} 12. Qe1 {[%clk 0:02:34]}  Ne4 {[%clk 0:02:35]} 13. Rd1 {[%clk 0:02:25]}  f5 {[%clk 0:02:33]} 14. Ndf3 {[%clk 0:02:20]}  Bxe5 {[%clk 0:02:24]} 15. dxe5 {[%clk 0:02:16]}  Rac8 {[%clk 0:02:19]} 16. cxd5 {[%clk 0:02:15]}  exd5 {[%clk 0:02:18]} 17. Nd2 {[%clk 0:02:12]}  Nxd2 {[%clk 0:02:10]} 18. Rxd2 {[%clk 0:02:09]}  c4 {[%clk 0:02:09]} 19. bxc4 {[%clk 0:01:53]}  dxc4 {[%clk 0:02:09]} 20. Be2 {[%clk 0:01:46]}  c3 {[%clk 0:02:09]} 21. Bxc3 {[%clk 0:01:46]}  Rxc3 {[%clk 0:02:09]} 22. Rxd7 {[%clk 0:01:47]}  Qc5 {[%clk 0:01:50]} 23. Rxb7 {[%clk 0:01:46]}  Rc8 {[%clk 0:01:46]} 24. Qg3 {[%clk 0:01:41]}  g6 {[%clk 0:01:45]} 25. Kh1 {[%clk 0:01:38]}  Rxe3 {[%clk 0:01:44]} 26. Qg5 {[%clk 0:01:30]}  Rxe2 {[%clk 0:01:40]} 27. Qf6 {[%clk 0:01:29]}  Qf8 {[%clk 0:01:17]} 28. Qe6+ {[%clk 0:01:25]}  Kh8 {[%clk 0:01:16]} 29. Qd7 {[%clk 0:01:24]}  Qg8 {[%clk 0:01:14]} 30. Qe7 {[%clk 0:01:23]}  Rf8 {[%clk 0:01:04]} 31. Rxa7 {[%clk 0:01:21]}  Rc2 {[%clk 0:00:58]} 32. e6 {[%clk 0:01:19]}  Rc6 {[%clk 0:00:57]} 33. Re1 {[%clk 0:01:17]}  h5 {[%clk 0:00:48]} 34. Qd7 {[%clk 0:01:16]}  Rfc8 {[%clk 0:00:32]} 35. Qd4+ {[%clk 0:01:14]} 1-0


[Site "https://www.chess.com"]

[Event "Titled Tuesday Blitz April 12 Early 2022"]
[White "Pakleza, Zbigniew"]
[Black "Vokhidov, Shamsiddin"]
[WhiteFideId "1119290"]
[BlackFideId "14204223"]
[WhiteElo "2467"]
[BlackElo "2611"]
[Result "0-1"]
[Round "10"]
[TimeControl "180+1"]
[Date "2022.04.12"]
[WhiteClock "0:00:03"]
[BlackClock "0:01:04"]

1. Nf3 {[%clk 0:02:59]}  d5 {[%clk 0:02:59]} 2. c4 {[%clk 0:02:59]}  d4 {[%clk 0:02:59]} 3. e3 {[%clk 0:02:53]}  Nc6 {[%clk 0:02:59]} 4. b4 {[%clk 0:02:51]}  dxe3 {[%clk 0:02:57]} 5. fxe3 {[%clk 0:02:52]}  Nxb4 {[%clk 0:02:57]} 6. Nc3 {[%clk 0:02:45]}  c5 {[%clk 0:02:54]} 7. d4 {[%clk 0:02:36]}  Nf6 {[%clk 0:02:53]} 8. Be2 {[%clk 0:02:33]}  g6 {[%clk 0:02:53]} 9. O-O {[%clk 0:02:32]}  Bg7 {[%clk 0:02:54]} 10. a3 {[%clk 0:02:10]}  Nc6 {[%clk 0:02:53]} 11. d5 {[%clk 0:02:06]}  Na5 {[%clk 0:02:52]} 12. Bb2 {[%clk 0:02:03]}  O-O {[%clk 0:02:48]} 13. h3 {[%clk 0:01:33]}  b6 {[%clk 0:02:40]} 14. Rc1 {[%clk 0:01:24]}  Ba6 {[%clk 0:02:34]} 15. Nd2 {[%clk 0:01:21]}  e6 {[%clk 0:02:24]} 16. e4 {[%clk 0:01:19]}  Nd7 {[%clk 0:02:21]} 17. Qc2 {[%clk 0:00:59]}  Ne5 {[%clk 0:01:55]} 18. Nd1 {[%clk 0:00:53]}  exd5 {[%clk 0:01:51]} 19. exd5 {[%clk 0:00:52]}  Qg5 {[%clk 0:01:47]} 20. Nf2 {[%clk 0:00:39]}  Rae8 {[%clk 0:01:41]} 21. Rce1 {[%clk 0:00:33]}  f5 {[%clk 0:01:27]} 22. Kh1 {[%clk 0:00:30]}  Qg3 {[%clk 0:01:25]} 23. Bc3 {[%clk 0:00:17]}  Nexc4 {[%clk 0:01:17]} 24. Nxc4 {[%clk 0:00:15]}  Bxc3 {[%clk 0:01:14]} 25. Nxa5 {[%clk 0:00:12]}  Bxe1 {[%clk 0:01:13]} 26. Bxa6 {[%clk 0:00:12]}  Bxf2 {[%clk 0:01:06]} 27. Nc6 {[%clk 0:00:09]}  Bd4 {[%clk 0:01:05]} 28. Nxd4 {[%clk 0:00:04]}  cxd4 {[%clk 0:01:05]} 29. Qc7 {[%clk 0:00:03]}  Qxc7 {[%clk 0:01:04]} 0-1


[Site "https://www.chess.com"]

[Event "Titled Tuesday Blitz April 12 Early 2022"]
[White "Petrova, Irina"]
[Black "Legenia, Artem"]
[WhiteFideId "14124122"]
[BlackFideId "14136945"]
[WhiteElo "1993"]
[BlackElo "1936"]
[Result "0-1"]
[Round "10"]
[TimeControl "180+1"]
[Date "2022.04.13"]
[WhiteClock "0:00:02"]
[BlackClock "0:00:11"]

1. e4 {[%clk 0:03:00]}  d5 {[%clk 0:02:49]} 2. exd5 {[%clk 0:02:59]}  Qxd5 {[%clk 0:02:49]} 3. Nc3 {[%clk 0:02:59]}  Qa5 {[%clk 0:02:49]} 4. d4 {[%clk 0:03:00]}  Nf6 {[%clk 0:02:49]} 5. Bd2 {[%clk 0:02:58]}  Bf5 {[%clk 0:02:30]} 6. Bc4 {[%clk 0:02:57]}  Qb4 {[%clk 0:02:24]} 7. Bb3 {[%clk 0:02:46]}  Qd6 {[%clk 0:02:24]} 8. Nge2 {[%clk 0:02:46]}  Nc6 {[%clk 0:02:21]} 9. Nb5 {[%clk 0:02:45]}  Qd7 {[%clk 0:02:20]} 10. Bf4 {[%clk 0:02:39]}  Rc8 {[%clk 0:02:18]} 11. d5 {[%clk 0:02:34]}  Nb4 {[%clk 0:02:07]} 12. Nbc3 {[%clk 0:02:14]}  c6 {[%clk 0:02:00]} 13. O-O {[%clk 0:01:51]}  Nbxd5 {[%clk 0:01:57]} 14. Nxd5 {[%clk 0:01:50]}  Nxd5 {[%clk 0:01:57]} 15. Bg3 {[%clk 0:01:47]}  e6 {[%clk 0:01:57]} 16. Nd4 {[%clk 0:01:40]}  Bg6 {[%clk 0:01:56]} 17. c4 {[%clk 0:01:31]}  Nb6 {[%clk 0:01:56]} 18. Re1 {[%clk 0:01:26]}  Be7 {[%clk 0:01:53]} 19. a4 {[%clk 0:01:18]}  a5 {[%clk 0:01:51]} 20. Rc1 {[%clk 0:00:49]}  O-O {[%clk 0:01:47]} 21. c5 {[%clk 0:00:47]}  Nd5 {[%clk 0:01:46]} 22. Nf3 {[%clk 0:00:30]}  Rcd8 {[%clk 0:01:39]} 23. Ne5 {[%clk 0:00:29]}  Qe8 {[%clk 0:01:36]} 24. Nxg6 {[%clk 0:00:29]}  hxg6 {[%clk 0:01:35]} 25. Bxd5 {[%clk 0:00:28]}  Rxd5 {[%clk 0:01:34]} 26. Qb3 {[%clk 0:00:28]}  Qd7 {[%clk 0:01:33]} 27. Red1 {[%clk 0:00:19]}  Rd8 {[%clk 0:01:32]} 28. Rxd5 {[%clk 0:00:19]}  Qxd5 {[%clk 0:01:32]} 29. Qxd5 {[%clk 0:00:17]}  Rxd5 {[%clk 0:01:31]} 30. Bc7 {[%clk 0:00:16]}  Bxc5 {[%clk 0:01:29]} 31. Bxa5 {[%clk 0:00:16]}  Bxf2+ {[%clk 0:01:29]} 32. Kxf2 {[%clk 0:00:17]}  Rxa5 {[%clk 0:01:30]} 33. b3 {[%clk 0:00:17]}  b5 {[%clk 0:01:26]} 34. Rxc6 {[%clk 0:00:16]}  bxa4 {[%clk 0:01:26]} 35. bxa4 {[%clk 0:00:17]}  Rxa4 {[%clk 0:01:26]} 36. Rc8+ {[%clk 0:00:17]}  Kh7 {[%clk 0:01:26]} 37. h3 {[%clk 0:00:18]}  Ra3 {[%clk 0:01:23]} 38. Kg1 {[%clk 0:00:15]}  g5 {[%clk 0:01:22]} 39. Rc7 {[%clk 0:00:15]}  Kg6 {[%clk 0:01:21]} 40. Kf2 {[%clk 0:00:16]}  Kf6 {[%clk 0:01:14]} 41. Rb7 {[%clk 0:00:15]}  Ra4 {[%clk 0:01:11]} 42. Rc7 {[%clk 0:00:15]}  g4 {[%clk 0:01:11]} 43. hxg4 {[%clk 0:00:15]}  Rxg4 {[%clk 0:01:10]} 44. Rb7 {[%clk 0:00:15]}  Ra4 {[%clk 0:01:09]} 45. Rc7 {[%clk 0:00:15]}  Kg6 {[%clk 0:01:09]} 46. Rb7 {[%clk 0:00:15]}  f5 {[%clk 0:01:09]} 47. Rc7 {[%clk 0:00:15]}  Kf6 {[%clk 0:01:08]} 48. Rb7 {[%clk 0:00:15]}  g5 {[%clk 0:01:08]} 49. Rb6 {[%clk 0:00:14]}  f4 {[%clk 0:01:06]} 50. Rb5 {[%clk 0:00:11]}  e5 {[%clk 0:01:05]} 51. Rb2 {[%clk 0:00:11]}  Ra3 {[%clk 0:01:04]} 52. Rc2 {[%clk 0:00:11]}  Kf5 {[%clk 0:01:04]} 53. Rb2 {[%clk 0:00:11]}  e4 {[%clk 0:01:04]} 54. Rc2 {[%clk 0:00:11]}  Kg4 {[%clk 0:01:01]} 55. Rb2 {[%clk 0:00:11]}  f3 {[%clk 0:00:58]} 56. gxf3+ {[%clk 0:00:10]}  Rxf3+ {[%clk 0:00:57]} 57. Kg2 {[%clk 0:00:10]}  Kf4 {[%clk 0:00:52]} 58. Rb8 {[%clk 0:00:10]}  g4 {[%clk 0:00:52]} 59. Rf8+ {[%clk 0:00:10]}  Ke3 {[%clk 0:00:52]} 60. Rb8 {[%clk 0:00:11]}  g3 {[%clk 0:00:48]} 61. Rb3+ {[%clk 0:00:10]}  Kf4 {[%clk 0:00:48]} 62. Rb8 {[%clk 0:00:09]}  Rf2+ {[%clk 0:00:48]} 63. Kg1 {[%clk 0:00:09]}  Kf3 {[%clk 0:00:48]} 64. Rb4 {[%clk 0:00:08]}  e3 {[%clk 0:00:47]} 65. Rb8 {[%clk 0:00:06]}  g2 {[%clk 0:00:45]} 66. Rf8+ {[%clk 0:00:04]}  Ke2 {[%clk 0:00:45]} 67. Rb8 {[%clk 0:00:05]}  Kd3 {[%clk 0:00:30]} 68. Rd8+ {[%clk 0:00:04]}  Ke4 {[%clk 0:00:29]} 69. Re8+ {[%clk 0:00:04]}  Kf3 {[%clk 0:00:27]} 70. Rf8+ {[%clk 0:00:04]}  Ke2 {[%clk 0:00:27]} 71. Rb8 {[%clk 0:00:04]}  Rf4 {[%clk 0:00:25]} 72. Kxg2 {[%clk 0:00:03]}  Rd4 {[%clk 0:00:25]} 73. Re8 {[%clk 0:00:03]}  Kd2 {[%clk 0:00:25]} 74. Kf3 {[%clk 0:00:03]}  Rd7 {[%clk 0:00:22]} 75. Re6 {[%clk 0:00:02]}  Rf7+ {[%clk 0:00:22]} 76. Kg2 {[%clk 0:00:02]}  e2 {[%clk 0:00:22]} 77. Rd6+ {[%clk 0:00:01]}  Ke1 {[%clk 0:00:22]} 78. Rd8 {[%clk 0:00:02]}  Rf4 {[%clk 0:00:20]} 79. Rd7 {[%clk 0:00:02]}  Rc4 {[%clk 0:00:17]} 80. Kf3 {[%clk 0:00:03]}  Rc3+ {[%clk 0:00:17]} 81. Kg2 {[%clk 0:00:02]}  Rc2 {[%clk 0:00:12]} 82. Kf3 {[%clk 0:00:02]}  Rd2 {[%clk 0:00:12]} 83. Re7 {[%clk 0:00:02]}  Kd1 {[%clk 0:00:13]} 84. Ra7 {[%clk 0:00:02]}  Rd3+ {[%clk 0:00:11]} 0-1


[Site "https://www.chess.com"]

[Event "Titled Tuesday Blitz April 12 Early 2022"]
[White "Piesik, Piotr"]
[Black "Garv Gaur"]
[WhiteFideId "1136194"]
[BlackFideId "45030839"]
[WhiteElo "2190"]
[BlackElo "1950"]
[Result "0-1"]
[Round "10"]
[TimeControl "180+1"]
[Date "2022.04.13"]
[WhiteClock "0:01:02"]
[BlackClock "0:00:22"]

1. Nf3 {[%clk 0:03:00]}  d5 {[%clk 0:02:59]} 2. g3 {[%clk 0:03:01]}  Nf6 {[%clk 0:02:59]} 3. Bg2 {[%clk 0:03:01]}  c5 {[%clk 0:03:00]} 4. O-O {[%clk 0:03:01]}  Nc6 {[%clk 0:03:00]} 5. d3 {[%clk 0:03:02]}  e5 {[%clk 0:02:58]} 6. Nbd2 {[%clk 0:03:02]}  Be6 {[%clk 0:02:58]} 7. e4 {[%clk 0:03:03]}  Be7 {[%clk 0:02:57]} 8. Ng5 {[%clk 0:03:02]}  Bg4 {[%clk 0:02:53]} 9. Bf3 {[%clk 0:03:02]}  Bxf3 {[%clk 0:02:53]} 10. Ngxf3 {[%clk 0:03:03]}  O-O {[%clk 0:02:52]} 11. Qe2 {[%clk 0:03:01]}  dxe4 {[%clk 0:02:50]} 12. dxe4 {[%clk 0:03:01]}  Nd4 {[%clk 0:02:48]} 13. Qd3 {[%clk 0:02:59]}  Qc7 {[%clk 0:02:26]} 14. c3 {[%clk 0:02:58]}  Nxf3+ {[%clk 0:02:23]} 15. Qxf3 {[%clk 0:02:55]}  Rfd8 {[%clk 0:02:22]} 16. Qe2 {[%clk 0:02:52]}  Qc6 {[%clk 0:02:20]} 17. a4 {[%clk 0:02:50]}  a6 {[%clk 0:02:18]} 18. a5 {[%clk 0:02:49]}  Rd7 {[%clk 0:02:08]} 19. f3 {[%clk 0:02:49]}  Rad8 {[%clk 0:02:07]} 20. Nc4 {[%clk 0:02:49]}  Qb5 {[%clk 0:02:04]} 21. Bg5 {[%clk 0:02:43]}  h6 {[%clk 0:01:59]} 22. Bxf6 {[%clk 0:02:43]}  Bxf6 {[%clk 0:01:59]} 23. Rf2 {[%clk 0:02:36]}  Rd3 {[%clk 0:01:59]} 24. Ne3 {[%clk 0:02:29]}  Bg5 {[%clk 0:01:48]} 25. Nd5 {[%clk 0:02:29]}  c4 {[%clk 0:01:45]} 26. Rd1 {[%clk 0:02:22]}  R8xd5 {[%clk 0:01:35]} 27. exd5 {[%clk 0:02:20]}  Qxd5 {[%clk 0:01:36]} 28. Rxd3 {[%clk 0:02:16]}  cxd3 {[%clk 0:01:37]} 29. Qe4 {[%clk 0:02:10]}  Qxe4 {[%clk 0:01:29]} 30. fxe4 {[%clk 0:02:11]}  Be3 {[%clk 0:01:29]} 31. Kg2 {[%clk 0:02:11]}  Bxf2 {[%clk 0:01:26]} 32. Kxf2 {[%clk 0:02:12]}  f5 {[%clk 0:01:26]} 33. exf5 {[%clk 0:02:09]}  e4 {[%clk 0:01:26]} 34. b4 {[%clk 0:01:57]}  Kf7 {[%clk 0:01:25]} 35. c4 {[%clk 0:01:57]}  Ke7 {[%clk 0:01:21]} 36. Ke3 {[%clk 0:01:47]}  Kd6 {[%clk 0:01:08]} 37. g4 {[%clk 0:01:45]}  Ke5 {[%clk 0:01:08]} 38. h4 {[%clk 0:01:14]}  h5 {[%clk 0:00:59]} 39. gxh5 {[%clk 0:01:14]}  Kxf5 {[%clk 0:00:59]} 40. b5 {[%clk 0:01:12]}  Ke6 {[%clk 0:00:56]} 41. c5 {[%clk 0:01:11]}  Kd7 {[%clk 0:00:50]} 42. c6+ {[%clk 0:01:04]}  bxc6 {[%clk 0:00:23]} 43. b6 {[%clk 0:01:04]}  c5 {[%clk 0:00:23]} 44. Kd2 {[%clk 0:01:02]}  c4 {[%clk 0:00:22]} 45. Kc3 {[%clk 0:01:02]}  Kc6 {[%clk 0:00:22]} 46. Kd2 {[%clk 0:01:02]}  Kb7 {[%clk 0:00:22]} 47. Kc3 {[%clk 0:01:02]}  e3 {[%clk 0:00:22]} 48. h6 {[%clk 0:01:01]}  gxh6 {[%clk 0:00:22]} 49. h5 {[%clk 0:01:01]}  e2 {[%clk 0:00:22]} 50. Kd2 {[%clk 0:01:02]}  c3+ {[%clk 0:00:22]} 0-1


[Site "https://www.chess.com"]

[Event "Titled Tuesday Blitz April 12 Early 2022"]
[White "Pranav, V"]
[Black "Wagh Suyog"]
[WhiteFideId "25060783"]
[BlackFideId "25071688"]
[WhiteElo "2349"]
[BlackElo "2181"]
[Result "0-1"]
[Round "10"]
[TimeControl "180+1"]
[Date "2022.04.12"]
[WhiteClock "0:00:01"]
[BlackClock "0:00:50"]

1. b3 {[%clk 0:03:00]}  d5 {[%clk 0:02:59]} 2. Bb2 {[%clk 0:03:00]}  c5 {[%clk 0:03:00]} 3. e3 {[%clk 0:03:01]}  Nc6 {[%clk 0:03:00]} 4. f4 {[%clk 0:03:01]}  Nf6 {[%clk 0:03:00]} 5. Nf3 {[%clk 0:03:02]}  g6 {[%clk 0:03:00]} 6. Bb5 {[%clk 0:03:03]}  Bg7 {[%clk 0:03:00]} 7. O-O {[%clk 0:03:03]}  Bd7 {[%clk 0:03:00]} 8. Bxc6 {[%clk 0:03:03]}  Bxc6 {[%clk 0:03:00]} 9. Ne5 {[%clk 0:03:04]}  Rc8 {[%clk 0:03:00]} 10. d3 {[%clk 0:03:04]}  O-O {[%clk 0:03:01]} 11. Nd2 {[%clk 0:03:05]}  Qc7 {[%clk 0:03:01]} 12. Qf3 {[%clk 0:03:03]}  Rfe8 {[%clk 0:02:56]} 13. Qh3 {[%clk 0:03:02]}  b6 {[%clk 0:02:56]} 14. Rae1 {[%clk 0:03:01]}  Bb7 {[%clk 0:02:56]} 15. Ba1 {[%clk 0:03:01]}  a5 {[%clk 0:02:56]} 16. Ndf3 {[%clk 0:03:01]}  a4 {[%clk 0:02:45]} 17. Nxf7 {[%clk 0:02:56]}  Qd7 {[%clk 0:02:31]} 18. Qxd7 {[%clk 0:02:53]}  Nxd7 {[%clk 0:02:31]} 19. Bxg7 {[%clk 0:02:54]}  Kxf7 {[%clk 0:02:29]} 20. Bh6 {[%clk 0:02:51]}  Kg8 {[%clk 0:02:28]} 21. Ng5 {[%clk 0:02:48]}  e5 {[%clk 0:02:28]} 22. fxe5 {[%clk 0:02:44]}  Nxe5 {[%clk 0:02:28]} 23. h3 {[%clk 0:02:43]}  Rc7 {[%clk 0:02:23]} 24. d4 {[%clk 0:02:36]}  Nf7 {[%clk 0:02:22]} 25. Nxf7 {[%clk 0:02:15]}  Rxf7 {[%clk 0:02:23]} 26. Rxf7 {[%clk 0:02:12]}  Kxf7 {[%clk 0:02:24]} 27. bxa4 {[%clk 0:02:13]}  Ra8 {[%clk 0:02:19]} 28. Rb1 {[%clk 0:02:12]}  Rxa4 {[%clk 0:02:12]} 29. Rxb6 {[%clk 0:02:10]}  Bc8 {[%clk 0:02:13]} 30. dxc5 {[%clk 0:01:27]}  Rc4 {[%clk 0:01:44]} 31. Rc6 {[%clk 0:01:21]}  Bf5 {[%clk 0:01:43]} 32. Rc7+ {[%clk 0:01:17]}  Ke6 {[%clk 0:01:43]} 33. Bf8 {[%clk 0:01:13]}  Rxc2 {[%clk 0:01:43]} 34. Rxh7 {[%clk 0:01:07]}  Be4 {[%clk 0:01:42]} 35. g4 {[%clk 0:01:07]}  d4 {[%clk 0:01:33]} 36. exd4 {[%clk 0:01:05]}  Kd5 {[%clk 0:01:34]} 37. Rd7+ {[%clk 0:01:01]}  Kc4 {[%clk 0:01:34]} 38. Bg7 {[%clk 0:00:50]}  Kd3 {[%clk 0:01:31]} 39. Rf7 {[%clk 0:00:09]}  Rg2+ {[%clk 0:01:30]} 40. Kf1 {[%clk 0:00:08]}  Rxa2 {[%clk 0:01:30]} 41. h4 {[%clk 0:00:05]}  Bd5 {[%clk 0:01:23]} 42. Rf8 {[%clk 0:00:02]}  Ke3 {[%clk 0:01:18]} 43. Bh6+ {[%clk 0:00:03]}  Kd3 {[%clk 0:01:18]} 44. h5 {[%clk 0:00:03]}  gxh5 {[%clk 0:01:11]} 45. gxh5 {[%clk 0:00:04]}  Rh2 {[%clk 0:01:10]} 46. Rf5 {[%clk 0:00:04]}  Be4 {[%clk 0:01:10]} 47. Rg5 {[%clk 0:00:02]}  Kxd4 {[%clk 0:01:04]} 48. Kg1 {[%clk 0:00:02]}  Rh1+ {[%clk 0:01:03]} 49. Kf2 {[%clk 0:00:02]}  Rh2+ {[%clk 0:01:03]} 50. Kg3 {[%clk 0:00:03]}  Rg2+ {[%clk 0:01:04]} 51. Kf4 {[%clk 0:00:02]}  Rf2+ {[%clk 0:01:00]} 52. Kg3 {[%clk 0:00:02]}  Rg2+ {[%clk 0:00:59]} 53. Kf4 {[%clk 0:00:01]}  Rh2 {[%clk 0:00:59]} 54. Rg6 {[%clk 0:00:01]}  Bxg6 {[%clk 0:00:58]} 55. Bg7+ {[%clk 0:00:01]}  Kxc5 {[%clk 0:00:55]} 56. hxg6 {[%clk 0:00:02]}  Kd6 {[%clk 0:00:55]} 57. Kg5 {[%clk 0:00:01]}  Ke6 {[%clk 0:00:55]} 58. Bd4 {[%clk 0:00:01]}  Rd2 {[%clk 0:00:55]} 59. Bc3 {[%clk 0:00:01]}  Rd3 {[%clk 0:00:55]} 60. Bb2 {[%clk 0:00:01]}  Rg3+ {[%clk 0:00:55]} 61. Kh5 {[%clk 0:00:02]}  Kf5 {[%clk 0:00:55]} 62. Kh4 {[%clk 0:00:02]}  Rxg6 {[%clk 0:00:55]} 63. Kh3 {[%clk 0:00:03]}  Kf4 {[%clk 0:00:56]} 64. Kh2 {[%clk 0:00:03]}  Kf3 {[%clk 0:00:56]} 65. Bd4 {[%clk 0:00:03]}  Rg4 {[%clk 0:00:55]} 66. Bc5 {[%clk 0:00:04]}  Rc4 {[%clk 0:00:55]} 67. Bb6 {[%clk 0:00:04]}  Rc6 {[%clk 0:00:55]} 68. Ba7 {[%clk 0:00:04]}  Re6 {[%clk 0:00:54]} 69. Kh1 {[%clk 0:00:04]}  Kg3 {[%clk 0:00:54]} 70. Bb8+ {[%clk 0:00:04]}  Kf3 {[%clk 0:00:54]} 71. Bh2 {[%clk 0:00:04]}  Rh6 {[%clk 0:00:51]} 72. Kg1 {[%clk 0:00:04]}  Rh5 {[%clk 0:00:51]} 73. Kh1 {[%clk 0:00:05]}  Rg5 {[%clk 0:00:50]} 74. Bg1 {[%clk 0:00:05]}  Ke2 {[%clk 0:00:50]} 75. Bh2 {[%clk 0:00:03]}  Kf1 {[%clk 0:00:50]} 76. Bf4 {[%clk 0:00:03]}  Rg4 {[%clk 0:00:51]} 77. Bh2 {[%clk 0:00:04]}  Kf2 {[%clk 0:00:49]} 78. Bc7 {[%clk 0:00:01]}  Re4 {[%clk 0:00:49]} 79. Bh2 {[%clk 0:00:01]}  Kf3 {[%clk 0:00:50]} 0-1


[Site "https://www.chess.com"]